bitfinex-derivatives/quotes_SOLF0:USTF0_20260308
["timestamp","ask_amount","ask_price","bid_price","bid_amount"]
[1772973311750,10.10374215,82.422,82.361,17.57827252]
[1772973311953,10.10374215,82.421,82.361,17.57827252]
[1772973312257,10.10374215,82.42,82.363,17.58324333]
[1772973312454,10.10374215,82.419,82.363,17.58324333]
[1772973312659,10.10374215,82.418,82.363,17.58324333]
[1772973312855,10.10374215,82.417,82.363,17.58324333]
[1772973313056,10.10374215,82.416,82.363,17.58324333]
[1772973313358,10.10374215,82.415,82.363,17.58324333]
[1772973313658,11.23214081,82.432,82.363,17.58324333]
[1772973313659,10.10374215,82.414,82.363,17.58324333]
[1772973313859,10.10374215,82.413,82.366,10.927]
[1772973314057,10.919,82.423,82.367,17.5861691]
[1772973314257,10.10650832,82.422,82.367,17.5861691]
[1772973314458,10.10650832,82.421,82.367,17.5861691]
[1772973314662,10.10650832,82.42,82.367,17.5861691]
[1772973314859,11.23214081,82.442,82.367,17.5861691]
[1772973315060,10.10740993,82.441,82.367,17.5861691]
[1772973315263,10.10740993,82.44,82.367,17.5861691]
[1772973315457,10.10740993,82.439,82.367,17.5861691]
[1772973315662,10.10740993,82.438,82.367,17.5861691]
[1772973315862,10.10740993,82.437,82.385,17.58878635]
[1772973316065,10.10740993,82.436,82.385,17.58878635]
[1772973316363,10.10740993,82.435,82.385,17.58878635]
[1772973316663,10.10740993,82.434,82.385,17.58878635]
[1772973316858,10.10740993,82.433,82.385,17.58878635]
[1772973317056,10.10740993,82.432,82.385,17.58878635]
[1772973317255,10.10740993,82.431,82.385,17.58878635]
[1772973317455,10.10740993,82.43,82.385,17.58878635]
[1772973317657,10.10740993,82.429,82.385,17.58878635]
[1772973317859,22.4839384,82.467,82.33,62.0]
[1772973317860,10.10740993,82.428,82.391,17.5877588]
[1772973318059,11.23214081,82.45,82.391,17.5877588]
[1772973318262,21.34424686,82.449,82.391,17.5877588]
[1772973318462,10.11210605,82.448,82.391,17.5877588]
[1772973318662,10.11210605,82.447,82.391,17.5877588]
[1772973318862,10.11210605,82.446,82.393,17.5877588]
[1772973319063,10.11210605,82.445,82.393,17.5877588]
[1772973319263,10.11210605,82.444,82.393,17.5877588]
[1772973319464,10.11210605,82.443,82.393,17.5877588]
[1772973319768,10.11210605,82.442,82.393,17.5877588]
[1772973319968,10.11210605,82.441,82.393,17.5877588]
[1772973320168,10.11210605,82.44,82.393,17.5877588]
[1772973320472,10.11210605,82.439,82.395,17.59363524]
[1772973320661,10.11210605,82.438,82.395,17.59363524]
[1772973320864,10.11210605,82.437,82.395,17.59363524]
[1772973321070,10.11621602,82.436,82.395,17.59363524]
[1772973321268,10.11621602,82.435,82.397,17.58883513]
[1772973321464,10.11621602,82.434,82.397,17.58883513]
[1772973321770,10.11621602,82.433,82.397,17.58883513]
[1772973321973,10.11621602,82.432,82.397,17.58883513]
[1772973322172,10.11621602,82.431,82.397,17.58883513]
[1772973322374,10.11621602,82.43,82.397,17.58883513]
[1772973322570,10.11621602,82.429,82.397,17.58883513]
[1772973322770,11.2270748,82.448,82.397,17.58883513]
[1772973322971,10.12091308,82.447,82.397,17.58883513]
[1772973323169,10.12091308,82.446,82.397,17.58883513]
[1772973323364,14.90390101,82.458,82.397,17.58883513]
[1772973323365,10.12091308,82.445,82.397,17.58883513]
[1772973323571,10.12091308,82.444,82.399,17.58484695]
[1772973323868,11.2270748,82.465,82.399,17.58484695]
[1772973324068,10.12475169,82.464,82.399,17.58484695]
[1772973324268,10.12475169,82.463,82.399,17.58484695]
[1772973324468,10.12475169,82.462,82.399,17.58484695]
[1772973324669,10.12475169,82.461,82.399,17.58484695]
[1772973324869,11.2270748,82.458,82.399,17.58484695]
[1772973325071,21.35182649,82.457,82.399,17.58484695]
[1772973325273,10.12475169,82.456,82.399,17.58484695]
[1772973325471,22.1420748,82.453,82.399,17.58484695]
[1772973325671,10.12475169,82.452,82.399,17.58484695]
[1772973325867,10.12475169,82.451,82.399,17.58484695]
[1772973326074,10.12475169,82.45,82.399,17.58484695]
[1772973326267,10.12475169,82.449,82.399,17.58484695]
[1772973326470,10.12475169,82.448,82.399,17.58484695]
[1772973326672,10.12475169,82.447,82.399,17.58484695]
[1772973326872,10.12475169,82.446,82.399,17.58484695]
[1772973327072,10.12475169,82.445,82.399,17.58484695]
[1772973327272,10.12475169,82.444,82.399,17.58484695]
[1772973327480,10.12475169,82.443,82.399,17.58484695]
[1772973327680,10.12475169,82.442,82.399,17.58484695]
[1772973327880,10.12475169,82.441,82.399,17.58484695]
[1772973328075,10.12475169,82.44,82.399,17.58484695]
[1772973328273,10.12475169,82.439,82.399,17.58484695]
[1772973328474,10.12475169,82.438,82.399,17.58484695]
[1772973328674,10.12475169,82.437,82.399,17.58484695]
[1772973328873,11.2270748,82.455,82.399,17.58484695]
[1772973329076,11.2270748,82.46,82.399,17.58484695]
[1772973329277,11.2270748,82.461,82.401,12.52886485]
[1772973330284,11.2270748,82.457,82.401,12.52886485]
[1772973330484,11.2270748,82.453,82.401,12.52886485]
[1772973331276,11.2270748,82.449,82.401,12.52886485]
[1772973331682,10.917,82.443,82.401,12.52886485]
[1772973333588,11.2270748,82.45,82.401,12.52886485]
[1772973334181,11.2270748,82.445,82.401,12.52886485]
[1772973334585,10.917,82.442,82.373,12.52907904]
[1772973335075,10.917,82.442,82.381,10.925]
[1772973335280,10.917,82.442,82.382,12.52917527]
[1772973335984,11.2270748,82.445,82.386,10.924]
[1772973336190,11.2270748,82.445,82.387,12.52917527]
[1772973337785,11.2270748,82.445,82.389,10.924]
[1772973338384,11.2270748,82.445,82.39,12.52366931]
[1772973340292,7.48e-05,82.461,82.39,12.52366931]
[1772973340491,7.48e-05,82.47,82.39,12.52366931]
[1772973340993,10.03920006,82.469,82.39,12.52366931]
[1772973341188,10.03920006,82.468,82.39,12.52366931]
[1772973341387,10.03920006,82.467,82.39,12.52366931]
[1772973341588,10.03920006,82.466,82.419,12.52784947]
[1772973341790,10.03920006,82.465,82.419,12.52784947]
[1772973342087,0.00020006,82.464,82.437,10.917]
[1772973342296,944.92835021,82.488,82.438,12.52784947]
[1772973342688,944.92835021,82.488,82.417,12.52784947]
[1772973343088,944.92835021,82.488,82.386,655.01156608]
[1772973343089,944.92835021,82.488,82.387,12.52784947]
[1772973343293,14.90390101,82.485,82.387,12.52784947]
[1772973344290,14.90390101,82.484,82.397,12.49788091]
[1772973344896,14.90390101,82.484,82.399,12.49788091]
[1772973345098,944.92835021,82.488,82.399,12.49788091]
[1772973346793,10.912,82.478,82.407,12.50068367]
[1772973349100,10.913,82.471,82.407,12.50068367]
[1772973349798,10.913,82.471,82.408,12.45568858]
[1772973351099,10.912,82.48,82.408,12.45568858]
[1772973351494,944.92835021,82.488,82.409,12.48909902]
[1772973352896,10.913,82.472,82.409,12.48909902]
[1772973354297,9.95001307,82.471,82.415,12.50549757]
[1772973354497,944.92835021,82.488,82.415,12.50549757]
[1772973354501,9.95001307,82.47,82.415,12.50549757]
[1772973354701,9.95001307,82.469,82.415,12.50549757]
[1772973354897,9.95001307,82.468,82.415,12.50549757]
[1772973355095,9.95001307,82.467,82.415,12.50549757]
[1772973355296,9.95001307,82.466,82.415,12.50549757]
[1772973355503,9.95001307,82.465,82.415,12.50549757]
[1772973355700,9.95001307,82.464,82.415,12.50549757]
[1772973355902,10.913,82.469,82.415,12.50549757]
[1772973356101,9.95043639,82.468,82.415,12.50549757]
[1772973356305,9.95043639,82.467,82.415,12.50549757]
[1772973356598,9.95043639,82.466,82.419,12.50169594]
[1772973356800,944.92835021,82.488,82.419,12.50169594]
[1772973357102,9.95172927,82.487,82.419,12.50169594]
[1772973357305,9.95172927,82.486,82.419,12.50169594]
[1772973357499,9.95172927,82.485,82.419,12.50169594]
[1772973357700,9.95172927,82.484,82.419,12.50169594]
[1772973358000,10.913,82.471,82.419,12.50169594]
[1772973358194,9.95172927,82.47,82.406,12.50090367]
[1772973358395,9.95172927,82.469,82.406,12.50090367]
[1772973358600,9.95172927,82.468,82.406,12.50090367]
[1772973358801,9.95172927,82.467,82.406,12.50090367]
[1772973359001,9.95172927,82.466,82.406,12.50090367]
[1772973359201,14.90390101,82.48,82.406,12.50090367]
[1772973359202,9.95172927,82.465,82.406,12.50090367]
[1772973359401,9.95172927,82.464,82.406,12.50090367]
[1772973359603,9.95172927,82.463,82.406,12.50090367]
[1772973359804,10.915,82.454,82.406,12.50090367]
[1772973360000,9.95172927,82.453,82.406,12.50090367]
[1772973360206,9.95172927,82.452,82.406,12.50090367]
[1772973360405,9.95172927,82.451,82.406,12.50090367]
[1772973360606,10.916,82.449,82.406,12.50090367]
[1772973364313,10.916,82.449,82.407,10.921]
[1772973364516,10.913,82.468,82.408,12.49652624]
[1772973364817,9.91291272,82.467,82.408,12.49652624]
[1772973365015,9.91291272,82.466,82.408,12.49652624]
[1772973365216,9.91291272,82.465,82.408,12.49652624]
[1772973365516,9.91291272,82.464,82.408,12.49652624]
[1772973365819,9.91291272,82.463,82.408,12.49652624]
[1772973366012,9.91291272,82.462,82.408,12.49652624]
[1772973366211,9.91291272,82.461,82.408,12.49652624]
[1772973366512,9.91291272,82.46,82.408,12.49652624]
[1772973366712,10.914,82.464,82.408,12.49652624]
[1772973367009,9.91208485,82.463,82.408,12.49652624]
[1772973367211,9.91208485,82.462,82.408,12.49652624]
[1772973367411,9.91208485,82.461,82.408,12.49652624]
[1772973367613,9.91208485,82.46,82.408,12.49652624]
[1772973367813,9.91208485,82.459,82.408,12.49652624]
[1772973368020,10.914,82.464,82.408,12.49652624]
[1772973368319,9.91318917,82.463,82.408,12.49652624]
[1772973368512,9.91318917,82.462,82.408,12.49652624]
[1772973368816,9.91318917,82.461,82.408,12.49652624]
[1772973369017,9.91318917,82.46,82.408,12.49652624]
[1772973369221,9.91318917,82.459,82.387,12.49245507]
[1772973369410,9.91318917,82.458,82.387,12.49245507]
[1772973369607,9.91318917,82.457,82.387,12.49245507]
[1772973369808,9.91318917,82.456,82.387,12.49245507]
[1772973370020,9.91318917,82.455,82.387,12.49245507]
[1772973370317,10.916,82.451,82.388,10.924]
[1772973370618,9.91318917,82.45,82.389,12.49253138]
[1772973370817,9.91318917,82.449,82.389,12.49253138]
[1772973371112,20.82918917,82.448,82.392,12.49253138]
[1772973371413,10.916,82.448,82.392,12.49253138]
[1772973377022,9.90482273,82.447,82.379,12.47738049]
[1772973377216,9.90482273,82.446,82.379,12.47738049]
[1772973377420,9.90482273,82.445,82.379,12.47738049]
[1772973377620,9.90482273,82.444,82.379,12.47738049]
[1772973377820,9.90482273,82.443,82.379,12.47738049]
[1772973378025,9.90482273,82.442,82.379,12.47738049]
[1772973378326,9.90482273,82.441,82.379,12.47738049]
[1772973378513,14.90390101,82.459,82.379,12.47738049]
[1772973378514,9.90482273,82.44,82.379,12.47738049]
[1772973378719,9.90482273,82.439,82.379,12.47738049]
[1772973378915,14.90390101,82.459,82.379,12.47738049]
[1772973378916,10.919,82.429,82.379,12.47738049]
[1772973379923,10.919,82.427,82.379,12.47738049]
[1772973380119,9.899606,82.426,82.358,12.45041491]
[1772973380317,9.899606,82.425,82.358,12.45041491]
[1772973380516,9.899606,82.424,82.358,12.45041491]
[1772973380722,9.899606,82.423,82.358,12.45041491]
[1772973380928,9.899606,82.422,82.358,12.45041491]
[1772973381221,9.899606,82.421,82.358,12.45041491]
[1772973381525,9.899606,82.42,82.358,12.45041491]
[1772973381721,9.899606,82.419,82.342,12.42794704]
[1772973381927,9.899606,82.418,82.342,12.42794704]
[1772973382126,9.899606,82.417,82.342,12.42794704]
[1772973382328,10.923,82.397,82.342,12.42794704]
[1772973382524,14.90390101,82.437,82.342,12.42794704]
[1772973382828,9.88185,82.436,82.342,12.42794704]
[1772973383029,9.88185,82.435,82.342,12.42794704]
[1772973383329,10.921,82.409,82.349,12.41980792]
[1772973383524,14.90390101,82.45,82.349,12.41980792]
[1772973383730,14.90390101,82.442,82.349,12.41980792]
[1772973383933,9.87428426,82.441,82.349,12.41980792]
[1772973384132,9.87428426,82.44,82.349,12.41980792]
[1772973384335,14.90390101,82.444,82.349,12.41980792]
[1772973384336,9.87428426,82.439,82.349,12.41980792]
[1772973384630,10.921,82.412,82.349,12.41980792]
[1772973385127,14.90390101,82.453,82.349,12.41980792]
[1772973385428,10.923,82.397,82.349,12.41980792]
[1772973386436,10.921,82.407,82.349,12.41980792]
[1772973389533,10.923,82.398,82.349,12.41980792]
[1772973390432,21.836,82.437,82.349,12.41980792]
[1772973390629,9.85430481,82.436,82.349,12.41980792]
[1772973390836,9.85430481,82.435,82.349,12.41980792]
[1772973391036,9.85430481,82.434,82.349,12.41980792]
[1772973391238,9.85430481,82.433,82.349,12.41980792]
[1772973391540,9.85430481,82.432,82.349,12.41980792]
[1772973391734,10.922,82.404,82.349,12.41980792]
[1772973392041,10.922,82.404,82.351,12.42810186]
[1772973394351,14.90390101,82.454,82.353,12.41349139]
[1772973394548,9.85975002,82.453,82.353,12.41349139]
[1772973394752,200.61254144,82.482,82.353,12.41349139]
[1772973394753,24.76365103,82.452,82.353,12.41349139]
[1772973395050,9.85975002,82.451,82.353,12.41349139]
[1772973395242,14.90390101,82.452,82.353,12.41349139]
[1772973395243,9.85975002,82.45,82.353,12.41349139]
[1772973395548,9.85975002,82.449,82.353,12.41349139]
[1772973395847,21.833,82.446,82.353,12.41349139]
[1772973396052,9.85975002,82.445,82.353,12.41349139]
[1772973396241,9.85975002,82.444,82.353,12.41349139]
[1772973396546,9.85975002,82.443,82.353,12.41349139]
[1772973396746,9.85975002,82.442,82.353,12.41349139]
[1772973396948,9.85975002,82.441,82.353,12.41349139]
[1772973397146,9.85975002,82.44,82.353,12.41349139]
[1772973397356,9.85975002,82.439,82.353,12.41349139]
[1772973397551,9.85975002,82.438,82.353,12.41349139]
[1772973397742,10.922,82.407,82.353,12.41349139]
[1772973400748,10.922,82.4,82.353,12.41349139]
[1772973401450,10.923,82.396,82.353,12.41349139]
[1772973401649,9.8625238,82.438,82.353,12.41349139]
[1772973401844,9.8625238,82.437,82.353,12.41349139]
[1772973402050,9.8625238,82.436,82.353,12.41349139]
[1772973402250,10.923,82.398,82.353,12.41349139]
[1772973404450,10.921,82.412,82.353,12.41349139]
[1772973406456,10.92,82.419,82.356,12.42117269]
[1772973407151,10.921,82.411,82.356,12.42117269]
[1772973407353,11.1958316,82.438,82.356,12.42117269]
[1772973407554,9.87116865,82.437,82.356,12.42117269]
[1772973407753,9.87116865,82.436,82.356,12.42117269]
[1772973407958,9.87116865,82.435,82.356,12.42117269]
[1772973408152,11.1958316,82.433,82.356,12.42117269]
[1772973408452,9.87116865,82.432,82.356,12.42117269]
[1772973408647,9.87116865,82.431,82.356,12.42117269]
[1772973408852,11.1958316,82.429,82.356,12.42117269]
[1772973409048,21.06700025,82.428,82.356,12.42117269]
[1772973409253,9.87116865,82.427,82.356,12.42117269]
[1772973409551,9.87116865,82.426,82.356,12.42117269]
[1772973409755,10.921,82.408,82.356,12.42117269]
[1772973409954,11.1958316,82.428,82.356,12.42117269]
[1772973410155,11.1958316,82.426,82.356,12.42117269]
[1772973410355,9.87431684,82.425,82.356,12.42117269]
[1772973410557,9.87431684,82.424,82.356,12.42117269]
[1772973410754,10.92,82.415,82.356,12.42117269]
[1772973411058,9.87431684,82.414,82.356,12.42117269]
[1772973411354,9.87431684,82.413,82.356,12.42117269]
[1772973411557,9.87431684,82.412,82.356,12.42117269]
[1772973411858,10.921,82.41,82.356,12.42117269]
[1772973412057,9.87431684,82.409,82.356,12.42117269]
[1772973412254,10.923,82.397,82.33,12.39608427]
[1772973412454,9.8840315,82.396,82.33,12.39608427]
[1772973412656,11.1958316,82.415,82.33,12.39608427]
[1772973412857,9.88398762,82.414,82.33,12.39608427]
[1772973413056,11.1958316,82.415,82.33,12.39608427]
[1772973413057,9.88398762,82.413,82.33,12.39608427]
[1772973413257,9.88398762,82.412,82.33,12.39608427]
[1772973413456,10.922,82.405,82.331,12.39189178]
[1772973413658,9.88398762,82.404,82.331,12.39189178]
[1772973413854,9.88398762,82.403,82.331,12.39189178]
[1772973414055,9.88398762,82.402,82.331,12.39189178]
[1772973414252,9.88398762,82.401,82.331,12.39189178]
[1772973414457,9.88398762,82.4,82.331,12.39189178]
[1772973414651,10.923,82.398,82.331,12.39189178]
[1772973414859,9.88398762,82.397,82.331,12.39189178]
[1772973415060,9.88398762,82.396,82.331,12.39189178]
[1772973415258,9.88398762,82.395,82.331,12.39189178]
[1772973415459,9.88398762,82.394,82.331,12.39189178]
[1772973415761,9.88398762,82.393,82.331,12.39189178]
[1772973416058,10.923,82.398,82.331,12.39189178]
[1772973416257,10.923,82.394,82.331,12.39189178]
[1772973416463,9.89180936,82.393,82.331,12.39189178]
[1772973416762,9.89180936,82.392,82.331,12.39189178]
[1772973416958,11.1958316,82.411,82.331,12.39189178]
[1772973417263,10.924,82.391,82.331,12.39189178]
[1772973417461,11.1958316,82.411,82.331,12.39189178]
[1772973417655,9.89452414,82.41,82.331,12.39189178]
[1772973417859,10.925,82.384,82.331,12.39189178]
[1772973420674,11.1958316,82.415,82.339,12.39630466]
[1772973420874,9.91001904,82.414,82.339,12.39630466]
[1772973421176,9.91001904,82.413,82.35,12.39630466]
[1772973421377,9.91001904,82.412,82.35,12.39630466]
[1772973421570,9.91001904,82.411,82.35,12.39630466]
[1772973421770,9.91001904,82.41,82.35,12.39630466]
[1772973421970,9.91001904,82.409,82.35,12.39630466]
[1772973422165,11.1958316,82.412,82.317,17.04035187]
[1772973422166,9.91001904,82.408,82.339,12.39560339]
[1772973422377,11.1958316,82.404,82.339,12.39560339]
[1772973422577,9.91001904,82.403,82.339,12.39560339]
[1772973422779,9.91001904,82.402,82.339,12.39560339]
[1772973422983,9.91001904,82.401,82.339,12.39560339]
[1772973423273,29.86028264,82.454,82.317,17.04035187]
[1772973423274,11.1958316,82.423,82.347,12.39560339]
[1772973423668,11.1958316,82.412,82.347,12.39560339]
[1772973424874,10.921,82.41,82.347,12.39560339]
[1772973425581,10.922,82.402,82.347,12.39560339]
[1772973425781,11.1958316,82.412,82.347,12.39560339]
[1772973426781,10.921,82.41,82.35,7.38357324]
[1772973427474,10.922,82.402,82.35,7.38357324]
[1772973430279,10.921,82.411,82.35,7.38357324]
[1772973430581,11.1958316,82.418,82.35,7.38357324]
[1772973430777,11.1958316,82.416,82.35,7.38357324]
[1772973431585,10.923,82.397,82.35,7.38357324]
[1772973434588,10.924,82.39,82.35,7.38357324]
[1772973435990,10.925,82.382,82.35,7.38357324]
[1772973436390,10.923,82.399,82.35,7.38357324]
[1772973436585,9.85767025,82.398,82.35,7.38357324]
[1772973436786,9.85767025,82.397,82.35,7.38357324]
[1772973436985,10.923,82.399,82.35,7.38357324]
[1772973437281,9.85767165,82.398,82.35,7.38357324]
[1772973437486,9.85767165,82.397,82.35,7.38357324]
[1772973437687,10.923,82.399,82.35,7.38357324]
[1772973437992,10.923,82.397,82.35,7.38357324]
[1772973440097,11.1958316,82.416,82.35,7.38357324]
[1772973440390,9.85310508,82.415,82.35,7.38357324]
[1772973440593,9.85310508,82.414,82.35,7.38357324]
[1772973440791,9.85310508,82.413,82.35,7.38357324]
[1772973440999,9.85310508,82.412,82.35,7.38357324]
[1772973441194,9.85310508,82.411,82.35,7.38357324]
[1772973441391,9.85310508,82.41,82.35,7.38357324]
[1772973441597,11.1958316,82.42,82.352,7.37350174]
[1772973441598,9.85310508,82.409,82.352,7.37350174]
[1772973441798,9.85310508,82.408,82.352,7.37350174]
[1772973441998,9.85310508,82.407,82.355,7.37350174]
[1772973442198,9.85310508,82.406,82.355,7.37350174]
[1772973442499,9.85310508,82.405,82.355,7.37350174]
[1772973442698,9.85310508,82.404,82.355,7.37350174]
[1772973442995,9.85310508,82.403,82.359,7.37350174]
[1772973443185,9.85310508,82.402,82.359,7.37350174]
[1772973443389,9.85310508,82.401,82.359,7.37350174]
[1772973443596,22.1158316,82.42,82.359,7.37350174]
[1772973443794,9.8486227,82.419,82.361,7.38061356]
[1772973443995,9.8486227,82.418,82.361,7.38061356]
[1772973444196,9.8486227,82.417,82.361,7.38061356]
[1772973444396,9.8486227,82.416,82.361,7.38061356]
[1772973444698,9.8486227,82.415,82.361,7.38061356]
[1772973444887,9.8486227,82.414,82.361,7.38061356]
[1772973445093,9.8486227,82.413,82.361,7.38061356]
[1772973445293,9.8486227,82.412,82.361,7.38061356]
[1772973445593,9.8486227,82.411,82.361,7.38061356]
[1772973445793,9.8486227,82.41,82.361,7.38061356]
[1772973445993,9.8486227,82.409,82.361,7.38061356]
[1772973446193,9.8486227,82.408,82.361,7.38061356]
[1772973446389,9.8486227,82.407,82.362,10.927]
[1772973446594,9.8486227,82.406,82.363,7.38076135]
[1772973446900,9.8486227,82.405,82.363,7.38076135]
[1772973447198,9.8486227,82.404,82.363,7.38076135]
[1772973447394,9.8486227,82.403,82.363,7.38076135]
[1772973447693,9.8486227,82.402,82.363,7.38076135]
[1772973447896,9.8486227,82.401,82.363,7.38076135]
[1772973448097,11.1958316,82.42,82.363,7.38076135]
[1772973448297,9.84863649,82.419,82.363,7.38076135]
[1772973448596,9.84863649,82.418,82.363,7.38076135]
[1772973448789,9.84863649,82.417,82.363,7.38076135]
[1772973448989,9.84863649,82.416,82.363,7.38076135]
[1772973449193,9.84863649,82.415,82.363,7.38076135]
[1772973449387,9.84863649,82.414,82.363,7.38076135]
[1772973449592,9.84863649,82.413,82.363,7.38076135]
[1772973449798,9.84863649,82.412,82.363,7.38076135]
[1772973449996,9.84863649,82.411,82.363,7.38076135]
[1772973450195,9.84863649,82.41,82.363,7.38076135]
[1772973450397,9.84863649,82.409,82.363,7.38076135]
[1772973450598,9.84863649,82.408,82.363,7.38076135]
[1772973450797,9.84863649,82.407,82.363,7.38076135]
[1772973450997,9.84863649,82.406,82.363,7.38076135]
[1772973451198,9.84863649,82.405,82.363,7.38076135]
[1772973451401,9.84863649,82.404,82.363,7.38076135]
[1772973451699,9.84863649,82.403,82.363,7.38076135]
[1772973451898,9.84863649,82.402,82.363,7.38076135]
[1772973452201,9.84863649,82.401,82.363,7.38076135]
[1772973452390,9.84863649,82.4,82.363,7.38076135]
[1772973452592,20.77163649,82.399,82.352,7.3744364]
[1772973452791,20.77163649,82.399,82.317,17.04035187]
[1772973452792,9.84863649,82.398,82.317,17.04035187]
[1772973452997,10.927,82.368,82.318,7.3744364]
[1772973453301,9.83991352,82.367,82.318,7.3744364]
[1772973453498,9.83991352,82.366,82.318,7.3744364]
[1772973453799,9.83991352,82.365,82.318,7.3744364]
[1772973454100,10.927,82.368,82.318,7.3744364]
[1772973454101,9.83991352,82.364,82.318,7.3744364]
[1772973454302,9.83991352,82.363,82.318,7.3744364]
[1772973454502,9.83991352,82.362,82.318,7.3744364]
[1772973454691,9.83991352,82.361,82.318,7.3744364]
[1772973454896,9.83991352,82.36,82.318,7.3744364]
[1772973455100,10.927,82.368,82.318,7.3744364]
[1772973455291,9.83313633,82.367,82.318,7.3744364]
[1772973455497,9.83313633,82.366,82.318,7.3744364]
[1772973455693,9.83313633,82.365,82.318,7.3744364]
[1772973455894,9.83313633,82.364,82.318,7.3744364]
[1772973456095,9.83313633,82.363,82.318,7.3744364]
[1772973456296,11.1958316,82.382,82.318,7.3744364]
[1772973456498,10.928,82.355,82.318,7.3744364]
[1772973457309,10.927,82.364,82.318,7.3744364]
[1772973458402,10.928,82.359,82.318,7.3744364]
[1772973458996,11.1958316,82.38,82.318,7.3744364]
[1772973459194,9.8200642,82.379,82.318,7.3744364]
[1772973459394,9.8200642,82.378,82.317,17.04035187]
[1772973459601,9.8200642,82.377,82.317,17.04035187]
[1772973459802,9.8200642,82.376,82.317,17.04035187]
[1772973460004,9.8200642,82.375,82.317,17.04035187]
[1772973460204,29.86028264,82.424,82.317,17.04035187]
[1772973460205,9.8200642,82.374,82.317,17.04035187]
[1772973460400,9.8200642,82.373,82.317,17.04035187]
[1772973460596,9.8200642,82.372,82.317,17.04035187]
[1772973460801,9.8200642,82.371,82.317,17.04035187]
[1772973461000,9.8200642,82.37,82.317,17.04035187]
[1772973461198,9.8200642,82.369,82.317,17.04035187]
[1772973461402,10.927,82.366,82.317,17.04035187]
[1772973462708,10.928,82.358,82.317,17.04035187]
[1772973465505,10.929,82.35,82.317,17.04035187]
[1772973466910,10.927,82.367,82.318,7.37987857]
[1772973470515,9.79026305,82.396,82.318,7.37987857]
[1772973470712,9.79026305,82.395,82.318,7.37987857]
[1772973470912,9.79026305,82.394,82.318,7.37987857]
[1772973471115,9.79026305,82.393,82.318,7.37987857]
[1772973471417,9.79026305,82.392,82.318,7.37987857]
[1772973471616,9.79026305,82.391,82.318,7.37987857]
[1772973471816,10.927,82.363,82.318,7.37987857]
[1772973473114,11.1958316,82.395,82.318,7.37987857]
[1772973473115,10.926,82.371,82.318,7.37987857]
[1772973475421,10.927,82.364,82.318,7.37987857]
[1772973478923,10.926,82.372,82.318,7.37987857]
[1772973480318,10.926,82.372,82.321,7.42025505]
[1772973480523,9.78759969,82.405,82.321,7.42025505]
[1772973480723,9.78759969,82.404,82.321,7.42025505]
[1772973481026,11.1958316,82.425,82.321,7.42025505]
[1772973481224,20.98649958,82.424,82.321,7.42025505]
[1772973481423,9.79066798,82.423,82.321,7.42025505]
[1772973481723,11.1958316,82.424,82.317,17.04035187]
[1772973481724,10.925,82.384,82.331,7.33678867]
[1772973482413,10.923,82.392,82.331,7.33678867]
[1772973482617,11.1958316,82.428,82.333,7.33678867]
[1772973482820,9.79144259,82.427,82.333,7.33678867]
[1772973483018,9.79144259,82.426,82.333,7.33678867]
[1772973483220,9.79144259,82.425,82.333,7.33678867]
[1772973483522,9.79144259,82.424,82.346,7.33502408]
[1772973483718,9.79144259,82.423,82.346,7.33502408]
[1772973483919,9.79144259,82.422,82.346,7.33502408]
[1772973484221,10.92,82.418,82.351,7.33513013]
[1772973484421,9.79144259,82.417,82.351,7.33513013]
[1772973484619,9.79144259,82.416,82.351,7.33513013]
[1772973484819,9.79144259,82.415,82.351,7.33513013]
[1772973485021,22.4839384,82.455,82.351,7.33513013]
[1772973485022,9.79144259,82.414,82.351,7.33513013]
[1772973485214,9.79144259,82.413,82.351,7.33513013]
[1772973485412,9.79144259,82.412,82.351,7.33513013]
[1772973485614,11.1958316,82.433,82.351,7.33513013]
[1772973485816,10.92,82.416,82.351,7.33513013]
[1772973486120,9.80327362,82.415,82.351,7.33513013]
[1772973486320,9.80327362,82.414,82.351,7.33513013]
[1772973486520,10.921,82.408,82.351,7.33513013]
[1772973489417,10.922,82.401,82.351,7.33513013]
[1772973494030,10.923,82.394,82.351,7.33513013]
[1772973495531,10.924,82.387,82.351,7.33513013]
[1772973495727,11.1958316,82.422,82.351,7.33513013]
[1772973495933,9.80615908,82.421,82.351,7.33513013]
[1772973496134,9.80615908,82.42,82.351,7.33513013]
[1772973496336,9.80615908,82.419,82.351,7.33513013]
[1772973496634,9.80615908,82.418,82.351,7.33513013]
[1772973496834,9.80615908,82.417,82.351,7.33513013]
[1772973497034,10.924,82.388,82.351,7.33513013]
[1772973500336,10.925,82.379,82.351,7.33513013]
[1772973500536,9.8031711,82.419,82.351,7.33513013]
[1772973500729,9.8031711,82.418,82.351,7.33513013]
[1772973500929,9.8031711,82.417,82.351,7.33513013]
[1772973501128,9.8031711,82.416,82.351,7.33513013]
[1772973501329,9.8031711,82.415,82.351,7.33513013]
[1772973501534,9.8031711,82.414,82.351,7.33513013]